bitfinex/quotes_ETHUSD_20241106
["timestamp","ask_amount","ask_price","bid_price","bid_amount"]
[1730859438939,3.98207,2511.3,2510.6,0.8351]
[1730859439176,4.778445,2511.3,2510.6,0.8351]
[1730859439474,3.98234,2511.1,2510.6,0.8351]
[1730859439680,3.98207,2511.3,2510.6,4.81815]
[1730859439881,3.98147,2511.7,2511.1,0.005]
[1730859440082,3.98137,2511.7,2511.1,0.005]
[1730859440387,3.98226,2511.2,2510.6,0.8351]
[1730859440689,3.98156,2511.6,2511.0,0.005]
[1730859440833,3.98241,2511.1,2510.6,0.8301]
[1730859441035,0.8329,2511.4,2510.2,0.8351]
[1730859441278,3.98297,2510.7,2510.2,0.8351]
[1730859442271,3.9827,2510.9,2510.2,0.8351]
[1730859442586,3.98189,2511.4,2510.6,0.005]
[1730859442750,0.8329,2511.8,2511.1,0.005]
[1730859442751,3.98156,2511.6,2511.1,0.005]
[1730859443076,2.07374232,2512.1,2511.6,0.8301]
[1730859443586,2.07374232,2512.1,2511.6,4.81652]
[1730859443871,3.9809,2512.0,2511.6,0.8301]
[1730859444201,3.98098,2512.0,2511.6,0.8351]
[1730859444681,3.98098,2512.0,2511.6,0.8301]
[1730859444982,2.07374232,2512.1,2511.8,3.9862]
[1730859445166,2.07374232,2512.1,2511.6,0.8301]
[1730859445349,5.21845589,2511.9,2511.6,0.8301]
[1730859445556,3.98179,2511.5,2511.2,0.8301]
[1730859445771,3.98143,2511.7,2511.2,0.8301]
[1730859445992,1.23729589,2511.9,2511.8,4.8113]
[1730859446439,3.97986,2512.7,2512.1,3.98573]
[1730859446639,3.97986,2512.7,2512.1,0.005]
[1730859446640,0.397986,2512.6,2512.1,0.005]
[1730859446975,4.378036,2512.6,2512.1,0.005]
[1730859447184,3.9802,2512.5,2512.1,0.005]
[1730859447388,3.95,2512.9,2512.6,0.005]
[1730859447599,3.95,2512.9,2512.6,3.98489]
[1730859447879,3.95,2512.9,2512.4,0.8301]
[1730859447880,0.0163128,2513.5,2512.4,0.8351]
[1730859448048,0.0163128,2513.5,2512.1,0.8301]
[1730859448049,3.9948828,2513.5,2512.1,0.8301]
[1730859448253,3.97972,2512.8,2512.1,0.8301]
[1730859448458,3.97972,2512.8,2512.1,4.81082]
[1730859448459,3.97996,2512.6,2512.1,4.81082]
[1730859448640,3.97996,2512.6,2512.1,0.8301]
[1730859448843,3.9949228,2513.5,2511.8,0.8351]
[1730859448844,3.98034,2512.4,2511.8,0.8351]
[1730859449037,3.98052,2512.3,2511.8,0.8351]
[1730859449283,3.98042,2512.3,2511.8,0.8301]
[1730859449441,0.796076,2512.3,2511.8,0.8301]
[1730859449782,3.8329,2513.3,2512.3,0.005]
[1730859449954,3.97971,2512.8,2512.0,0.005]
[1730859450158,0.397971,2512.7,2511.9,0.005]
[1730859450489,3.97993,2512.7,2512.2,0.005]
[1730859450682,3.97993,2512.7,2511.9,0.005]
[1730859450683,4.775873,2512.7,2511.9,0.005]
[1730859450841,3.97995,2512.6,2511.9,3.98593]
[1730859451040,3.98029,2512.4,2511.8,0.8301]
[1730859451547,3.98085,2512.1,2511.8,0.8301]
[1730859451741,0.0891397,2513.6,2513.0,0.8301]
[1730859452059,0.0891397,2513.6,2513.1,3.97913]
[1730859452245,0.0891397,2513.6,2513.3,0.005]
[1730859452644,0.0891397,2513.6,2513.3,3.98372]
[1730859452879,0.0891397,2513.6,2513.3,3.98371]
[1730859453079,0.0891397,2513.6,2513.4,4.80877]
[1730859453979,0.0891397,2513.6,2513.4,0.8301]
[1730859454180,0.0891397,2513.6,2513.1,0.005]
[1730859454357,3.97923,2513.1,2512.6,0.8301]
[1730859454678,3.9948428,2513.5,2512.9,0.005]
[1730859454884,0.0163128,2513.5,2512.9,0.005]
[1730859455091,0.0163128,2513.5,2513.2,0.005]
[1730859455790,0.0163128,2513.5,2513.0,0.005]
[1730859455983,4.40322705,2513.5,2512.8,0.8351]
[1730859456188,0.42470705,2513.5,2513.1,0.005]
[1730859456370,0.0163128,2513.5,2512.9,3.97939]
[1730859456550,0.0163128,2513.5,2513.3,0.00257866]
[1730859457369,0.0163128,2513.5,2513.4,4.80877]
[1730859457568,0.0163128,2513.5,2513.4,0.8301]
[1730859457804,0.0163128,2513.5,2513.4,5.35877]
[1730859458315,0.0163128,2513.5,2513.4,0.8301]
[1730859459206,0.0163128,2513.5,2513.4,4.80877]
[1730859460298,0.0163128,2513.5,2513.4,0.8301]
[1730859461719,0.0163128,2513.5,2513.4,4.80877]
[1730859462183,0.0163128,2513.5,2513.4,0.8301]
[1730859462371,0.0163128,2513.5,2513.4,4.80877]
[1730859463013,0.0163128,2513.5,2513.4,0.8301]
[1730859464719,0.0163128,2513.5,2513.0,0.8095]
[1730859464720,3.97895,2513.3,2513.0,0.8095]
[1730859464924,4.774856,2513.2,2512.9,0.00257866]
[1730859465068,3.97915,2513.1,2512.9,0.00257866]
[1730859465273,3.97915,2513.1,2512.3,3.98033]
[1730859465274,3.97994,2512.6,2512.3,0.81207866]
[1730859465497,3.97889,2513.3,2512.3,0.81207866]
[1730859465498,3.97971,2512.8,2512.3,0.81207866]
[1730859465817,3.97971,2512.8,2511.4,0.01]
[1730859465818,5.95539443,2516.2,2515.3,0.00257866]
[1730859465983,5.95539443,2516.2,2515.3,3.97823866]
[1730859466180,5.95539443,2516.2,2515.9,3.96461001]
[1730859466181,4.0440142,2516.2,2515.9,3.96461001]
[1730859466385,2.96999926,2518.0,2517.1,3.97282]
[1730859466572,2.96999926,2518.0,2515.6,11.67813524]
[1730859466573,1.592996,2517.5,2516.7,3.97343]
[1730859466774,1.592996,2517.5,2516.8,0.8095]
[1730859466987,2.01192802,2517.8,2517.1,4.78232]
[1730859467591,2.01192802,2517.8,2517.1,4.86174499]
[1730859467905,2.01192802,2517.8,2517.1,0.8095]
[1730859468535,3.97205,2517.6,2517.1,0.8095]
[1730859468813,3.97205,2517.6,2516.5,3.97375]
[1730859468814,0.01,2517.7,2516.5,0.8095]
[1730859469020,4.0618497,2517.2,2516.5,0.8095]
[1730859469174,0.0891397,2517.2,2516.5,0.8095]
[1730859469387,3.97315,2516.9,2515.9,0.8095]
[1730859469725,3.97314,2516.9,2515.9,0.8095]
[1730859469898,3.97396,2516.4,2515.5,0.8095]
[1730859470233,0.8805397,2517.2,2515.6,3.97516]
[1730859470527,0.0891397,2517.2,2515.9,4.78421]
[1730859470733,3.973,2517.0,2516.0,0.07946372]
[1730859470936,0.0891397,2517.2,2515.9,0.8095]
[1730859471234,3.97418,2516.3,2515.9,0.8095]
[1730859471385,3.97418,2516.3,2515.5,0.8095]
[1730859471589,3.9738,2516.5,2515.5,0.8095]
[1730859472003,3.97408,2516.4,2515.5,0.8095]
[1730859472245,3.97405,2516.4,2515.5,0.8095]
[1730859472412,3.97377,2516.5,2515.5,0.8095]
[1730859472617,0.7914,2516.7,2515.5,0.8095]
[1730859472937,3.97458,2516.0,2515.5,0.8095]
[1730859473146,3.98323,2516.9,2515.5,0.8095]
[1730859473147,3.97043,2518.7,2516.0,0.8095]
[1730859473330,2.07420033,2520.8,2518.9,0.01]
[1730859473331,3.96715,2520.7,2518.9,0.01]
[1730859473647,0.0891397,2520.8,2518.9,0.8195]
[1730859473648,3.96773,2520.4,2518.9,0.8195]
[1730859473811,3.9692,2519.4,2518.9,0.8195]
[1730859474004,0.01,2521.1,2518.9,4.78948]
[1730859474347,0.01,2521.1,2519.3,0.01]
[1730859474348,0.01,2520.4,2519.3,0.01]
[1730859474506,0.01,2520.4,2519.5,0.01]
[1730859474507,3.96829,2520.0,2519.5,0.01]
[1730859474703,3.96829,2520.0,2519.3,0.01]
[1730859474704,5.96432705,2519.8,2519.3,0.01]
[1730859474904,1.99573705,2519.8,2519.4,0.01]
[1730859475105,3.96887,2519.7,2519.4,0.01]
[1730859475304,6.16389076,2519.8,2519.5,0.01]
[1730859475637,6.16389076,2519.8,2519.0,0.01]
[1730859475638,2.19531076,2519.8,2519.0,0.01]
[1730859476150,3.96695,2520.9,2518.3,3.98092]
[1730859476151,3.96576,2521.6,2521.0,0.01]
[1730859476362,3.96623,2521.3,2521.0,0.01]
[1730859476522,3.96597,2521.5,2521.0,0.01]
[1730859476904,3.96668,2521.0,2520.7,0.01]
[1730859477215,0.14,2522.8,2521.2,0.01]
[1730859477415,0.14,2522.8,2521.2,0.02]
[1730859477626,3.96575,2521.6,2521.2,0.01]
[1730859477829,3.96601,2521.5,2521.0,0.01]
[1730859478011,3.96664,2521.1,2521.0,0.01]
[1730859478225,3.96447,2522.4,2521.0,0.01]
[1730859478404,7.70309524,2522.5,2520.9,0.01]
[1730859478599,3.96582,2521.6,2521.5,0.01]
[1730859478839,3.96605,2521.4,2521.3,0.01]
[1730859479044,3.96576,2521.6,2521.1,0.01]
[1730859479205,3.96576,2521.6,2521.4,0.01]
[1730859479405,3.96456,2522.4,2521.4,0.01]
[1730859479751,7.70309524,2522.5,2521.2,0.01]
[1730859479752,3.96589,2521.5,2521.2,0.01]
[1730859479906,3.96607,2521.4,2521.0,0.01]
[1730859480107,3.96637,2521.2,2520.7,0.01]
[1730859480308,3.9673,2520.6,2520.4,0.01]
[1730859480514,3.9673,2520.6,2520.5,0.01]
[1730859480841,3.96633,2521.3,2520.8,0.01]
[1730859481040,3.96633,2521.3,2519.8,0.192]
[1730859481041,3.96633,2521.3,2520.7,0.01]
[1730859481340,3.96694,2520.9,2520.5,0.02]
[1730859481507,0.793346,2520.9,2520.5,0.02]
[1730859481709,3.96825,2520.0,2519.9,0.01]
[1730859482023,8.93052824,2521.3,2519.2,0.172]
[1730859482024,3.96879,2519.7,2519.2,0.172]
[1730859482224,3.96888,2519.6,2519.3,0.01]
[1730859482401,3.96908,2519.5,2519.1,0.01]
[1730859482604,3.96908,2519.5,2518.7,0.172]
[1730859482605,0.01,2520.3,2518.9,0.01]
[1730859482929,3.97036,2518.7,2518.5,0.01]
[1730859483240,3.0,2519.6,2518.5,0.01]
[1730859483409,3.97045,2518.6,2518.5,0.01]
[1730859483605,4.79999,2519.4,2518.3,0.01]
[1730859483810,3.97097,2518.3,2518.0,0.172]
[1730859484026,3.96951,2519.2,2518.0,0.172]
[1730859484229,3.97033,2518.7,2518.3,0.02196064]
[1730859484438,3.97077,2518.4,2518.3,0.01196064]
[1730859484950,3.97077,2518.4,2518.3,6.4e-07]
[1730859485166,6.97077,2518.4,2518.3,6.4e-07]
[1730859486315,8.147981,2518.4,2518.3,6.4e-07]
[1730859487308,6.97077,2518.4,2518.3,6.4e-07]
[1730859487508,3.97054,2518.6,2518.3,6.4e-07]
[1730859487737,3.97077,2518.4,2518.3,6.4e-07]
[1730859489012,6.97077,2518.4,2518.3,6.4e-07]
[1730859489249,3.97219,2517.5,2517.4,0.01]
[1730859489616,3.97219,2517.5,2517.4,35.0]
[1730859490650,3.97316,2516.9,2516.6,0.01]
[1730859490959,3.97252,2517.3,2516.5,0.01]
[1730859491250,3.97252,2517.3,2516.3,0.172]
[1730859491251,3.97112,2518.2,2517.5,0.01]
[1730859491452,0.8308,2518.8,2517.5,0.182]
[1730859491760,3.97105,2518.3,2517.8,0.01]
[1730859492250,3.97105,2518.3,2517.8,0.08942494]
[1730859492557,3.97112,2518.2,2517.8,0.01]
[1730859492863,0.8308,2518.8,2517.9,35.0]
[1730859493152,0.480102,2518.7,2517.9,35.0]
[1730859493355,3.97045,2518.6,2517.9,35.0]
[1730859493712,3.96998,2518.9,2518.0,0.01]
[1730859493911,0.8308,2519.4,2518.0,0.08940985]
[1730859493912,3.96961,2519.2,2518.0,0.08940985]
[1730859494156,3.96961,2519.2,2518.3,0.01]
[1730859494352,3.96997,2519.0,2518.5,0.01]
[1730859494756,3.96997,2519.0,2518.5,0.08940444]
[1730859494967,3.96961,2519.2,2518.5,0.08940444]
[1730859495119,3.96961,2519.2,2517.6,0.01]
[1730859495120,0.01,2518.8,2518.2,3.97093]
[1730859495318,0.01,2518.8,2518.6,35.0]
[1730859495519,0.01,2518.5,2517.4,3.97223]
[1730859495719,0.01,2518.5,2516.6,7.70309524]
[1730859495720,0.02,2518.5,2516.6,7.70309524]
[1730859495955,0.02,2518.5,2517.6,3.97198]
[1730859496160,0.02,2518.3,2517.9,35.0]
[1730859496365,0.01,2518.7,2517.9,35.0]
[1730859496720,0.01,2518.4,2517.9,35.0]
[1730859497630,0.01,2518.3,2517.9,35.0]
[1730859497963,0.01,2518.0,2517.1,3.97269]
[1730859498160,0.01,2517.9,2517.1,3.97269]
[1730859498358,0.01,2518.0,2517.2,35.0]
[1730859498560,0.01,2517.9,2517.2,35.0]
[1730859499060,0.01,2517.6,2517.2,35.0]
[1730859499420,0.02,2517.7,2516.7,3.97343]
[1730859499619,0.02,2517.7,2516.8,3.97327]
[1730859499872,0.01,2518.2,2516.9,15.89256]
[1730859500077,0.01,2518.2,2517.6,3.97188]
[1730859500361,0.01,2518.3,2517.6,3.97188]
[1730859500578,3.97063,2518.5,2517.6,3.97188]
[1730859500869,0.01,2517.9,2517.0,3.97292]
[1730859501049,0.01,2517.7,2517.1,35.0]
[1730859501221,3.98204,2517.6,2516.8,3.97325]
[1730859501422,0.01,2517.5,2516.7,3.97343]
[1730859501761,0.01,2517.5,2516.8,35.0]
[1730859501981,3.98184,2517.8,2516.8,35.0]
[1730859502283,0.01,2517.3,2516.9,0.07944699]
[1730859502578,3.97214,2517.6,2516.8,0.07944692]
[1730859502784,9.14287201,2518.3,2517.3,3.97248]
[1730859502785,0.08940451,2518.1,2517.3,3.97248]
[1730859502989,0.01,2518.1,2517.5,3.97207]
[1730859503145,0.01,2518.1,2517.6,0.07943016]
[1730859503648,0.01,2518.1,2517.7,35.0]
[1730859503889,0.01,2518.1,2517.5,3.97207]
[1730859503890,3.97095,2518.3,2517.5,3.97207]
[1730859504073,4.455108,2518.5,2517.2,3.97264]
[1730859504074,3.98127,2518.1,2517.2,3.97264]
[1730859504254,0.01,2517.9,2517.3,35.0]
[1730859504437,0.40606745,2518.0,2517.3,35.0]
[1730859504639,0.01,2517.9,2517.5,7.94422]
[1730859504876,0.01,2517.9,2517.3,35.0]
[1730859505179,0.01,2517.9,2517.3,38.97239]
[1730859505378,0.01,2517.9,2517.4,3.97233]
[1730859505691,0.01,2517.9,2517.3,35.0]
[1730859506281,0.01,2517.9,2517.3,38.97249]
[1730859506457,3.97224,2517.5,2516.7,3.97335]
[1730859506776,4.369464,2517.5,2516.7,3.97335]
[1730859506982,4.369464,2517.5,2516.8,38.97329]
[1730859507180,4.369464,2517.5,2516.8,35.0]
[1730859507485,4.369464,2517.5,2515.8,10.11762201]
[1730859507486,0.07940451,2517.4,2516.1,3.97439]
[1730859507791,3.97316,2516.9,2516.2,0.35999382]
[1730859508089,7.94623,2517.0,2516.3,35.0]
[1730859508289,4.05190451,2517.4,2516.4,0.07946532]
[1730859508585,3.97276,2517.2,2516.4,4.05338532]
[1730859508755,3.97276,2517.2,2516.4,3.9739]
[1730859508756,0.07940451,2517.1,2516.4,3.9739]
[1730859508953,0.8197,2517.1,2516.4,8.0271444]
[1730859509263,3.97308,2517.0,2516.4,0.0794644]
[1730859509474,1.30432096,2517.1,2516.3,35.0]
[1730859509691,5.27715096,2517.1,2516.4,4.05328441]
[1730859510194,1.30432096,2517.1,2516.4,0.07946441]
[1730859510499,4.05247451,2517.0,2516.4,0.0794676]
[1730859510667,0.07940451,2517.0,2516.3,35.0]
[1730859510864,3.97343,2516.8,2516.1,3.97438]
[1730859511195,3.97343,2516.8,2516.0,3.97445]
[1730859511196,8.82882696,2516.8,2516.0,3.97445]
[1730859511352,3.97345,2516.7,2516.0,38.97445]
[1730859511693,0.8197,2517.1,2516.4,3.9738]
[1730859511905,9.14287201,2517.8,2516.2,3.97417]
[1730859511906,0.8197,2517.6,2517.2,3.97262]
[1730859512059,0.07940451,2517.8,2517.2,3.97262]
[1730859512388,0.07940451,2517.8,2517.0,3.97293]
[1730859512595,0.07940451,2517.8,2517.1,36.01934276]
[1730859512754,0.07940451,2517.8,2517.2,0.3616156]
[1730859512950,4.05114451,2517.8,2517.3,0.3616156]
[1730859513160,0.63087996,2517.8,2516.3,4.52408]
[1730859513352,3.97215,2517.6,2516.4,1.27875356]
[1730859513597,0.07940451,2517.5,2516.5,1.07063117]
[1730859513764,0.07940451,2517.9,2517.1,3.97269]
[1730859513966,0.07940451,2517.9,2516.7,4.55216342]
[1730859513967,3.9722,2517.5,2516.7,4.55216342]
[1730859514200,0.07940451,2517.4,2516.8,0.94050537]
[1730859514398,0.07940451,2517.4,2516.5,3.97372]
[1730859514399,0.48456496,2517.4,2516.9,0.36169195]
[1730859514609,3.9726,2517.3,2516.6,0.57884285]
[1730859514773,3.9726,2517.3,2516.7,0.36177036]
[1730859515104,3.9726,2517.3,2516.8,0.36177036]
[1730859515257,3.9726,2517.3,2516.9,0.36177036]
[1730859515458,4.36986,2517.3,2516.7,0.5789544]
[1730859515672,0.8197,2517.1,2516.8,0.36179769]
[1730859516007,4.36987,2517.3,2516.9,0.3618236]
[1730859516155,4.36987,2517.3,2516.7,0.57890627]
[1730859516359,4.79193,2517.5,2516.8,0.36179613]
[1730859516605,0.07940451,2517.4,2516.9,0.36179613]
[1730859516898,3.9906,2518.6,2516.9,0.36179613]
[1730859516899,0.07940451,2518.2,2517.2,3.97266]
[1730859517102,3.96956,2519.2,2517.9,3.97144]
[1730859517103,0.89910451,2518.6,2517.9,3.97144]
[1730859517273,4.86962451,2518.6,2517.7,3.97179]
[1730859517488,3.97088,2518.4,2517.8,0.36164285]
[1730859517668,3.97088,2518.4,2517.7,3.97179]
[1730859517669,3.97088,2518.4,2517.9,0.36164285]
[1730859517870,0.07940451,2518.3,2517.6,0.57869684]
[1730859518131,3.97127,2518.1,2517.7,0.36171176]
[1730859518418,0.8197,2518.6,2517.1,4.23313513]
[1730859518419,4.05081451,2518.0,2517.8,0.36169692]
[1730859518631,1.22478145,2517.9,2517.5,0.36183303]
[1730859518915,3.97198,2517.7,2517.5,0.36183303]
[1730859519575,4.05143451,2517.6,2517.5,0.36183303]
[1730859520296,4.05143451,2517.6,2516.9,0.26037671]
[1730859520496,3.97249,2517.4,2516.9,0.26037671]
[1730859520785,4.05192451,2517.3,2516.6,0.57911432]
[1730859521113,3.97285,2517.1,2516.7,0.36198651]
[1730859521289,3.97285,2517.1,2516.3,3.97402]
[1730859521290,0.8197,2517.1,2516.5,3.97375]
[1730859521490,0.8197,2517.1,2516.6,0.94147785]
[1730859521676,0.8197,2517.5,2516.9,3.973]
[1730859521873,6.14287201,2518.2,2516.7,0.07946483]
[1730859521874,0.8197,2518.4,2517.7,3.97186]
[1730859522096,0.397956,2519.1,2518.0,3.97125]
[1730859522097,0.07940451,2518.6,2518.0,3.97125]
[1730859522309,0.07940451,2518.7,2518.0,3.97125]
[1730859522509,4.04980451,2518.7,2517.8,3.97161]
[1730859522710,4.04980451,2518.7,2516.9,3.98304]
[1730859522711,3.97074,2518.5,2517.6,3.97198]
[1730859522875,3.97074,2518.5,2517.4,0.57872332]
[1730859522876,3.97103,2518.3,2517.7,0.36172077]
[1730859523071,3.97103,2518.3,2517.5,0.57879202]
[1730859523072,0.07940451,2518.2,2517.5,0.57879202]
[1730859523383,0.48444796,2518.2,2517.6,0.36176198]
[1730859523592,0.48444796,2518.2,2517.4,0.57879202]
[1730859523593,4.72704,2518.0,2517.4,0.57879202]
[1730859523787,0.7555,2517.7,2516.5,0.21717265]
[1730859524001,0.7555,2517.7,2516.2,2.01397191]
[1730859524002,0.7555,2517.7,2517.2,3.97253]
[1730859524590,0.7555,2517.7,2517.1,0.65872387]
[1730859524790,0.7555,2517.7,2517.2,0.36206969]
[1730859525036,0.7555,2518.2,2517.5,3.97213]
[1730859525204,0.7555,2518.2,2517.6,0.36218385]
[1730859525205,0.472653,2518.1,2517.6,0.36218385]
[1730859525397,0.83490451,2518.2,2517.6,0.07943198]
[1730859525749,0.07940451,2518.2,2517.5,3.97208]
[1730859526107,0.83490451,2518.6,2517.3,3.97251]
[1730859526306,0.83490451,2518.6,2517.8,3.97157]
[1730859526540,0.7555,2519.6,2518.9,3.96998]
[1730859526694,2.9743799,2519.9,2519.2,3.96938]
[1730859526893,0.4962815,2519.8,2519.3,3.96921]
[1730859527093,0.4962815,2519.8,2519.2,3.96938]
[1730859527334,0.4962815,2519.8,2519.3,3.96934]
[1730859527536,0.7555,2520.1,2519.2,3.96943]
[1730859527537,0.07940451,2519.7,2519.2,3.96943]
[1730859527720,0.07940451,2520.0,2518.8,0.55]
[1730859527921,0.07940451,2520.0,2518.7,0.57747897]
[1730859527922,4.04782451,2519.9,2519.0,3.96971]
[1730859528126,2.48140747,2520.5,2519.8,3.96856]
[1730859528127,0.07940451,2520.4,2519.8,3.96856]
[1730859528365,2.72954822,2520.5,2519.7,3.96872]
[1730859528574,0.24814075,2520.4,2519.9,3.96838]
[1730859528900,0.7555,2520.5,2520.1,3.96807]
[1730859529181,0.07940451,2520.4,2519.8,3.96841]
[1730859529536,3.968,2520.2,2519.2,3.96941]
[1730859529738,0.07940451,2520.1,2518.7,4.55500862]
[1730859530045,0.07940451,2520.3,2519.6,3.96883]
[1730859530237,3.96807,2520.2,2519.4,3.96919]
[1730859530478,3.96829,2520.0,2519.2,3.96943]
[1730859530649,0.7555,2520.5,2518.9,3.96998]
[1730859530650,0.7555,2519.8,2518.9,3.96998]
[1730859530854,3.96936,2519.3,2518.3,0.80374845]
[1730859531087,0.07940451,2519.7,2518.4,3.97074]
[1730859531088,4.04897451,2519.2,2518.4,3.97074]
[1730859531253,3.97027,2518.8,2518.3,0.80374845]
[1730859531456,3.9706,2518.6,2518.3,0.80374845]
[1730859531653,3.97019,2518.8,2518.3,0.80374845]
[1730859531861,0.07940451,2518.7,2518.3,0.80374845]
[1730859532090,3.97051,2518.6,2518.3,0.80374845]
[1730859532417,4.80552451,2518.5,2518.3,0.80374845]
[1730859532628,3.97077,2518.4,2518.3,0.80374845]
[1730859533584,3.97077,2518.4,2517.7,0.07942295]
[1730859533585,3.97093,2518.3,2517.3,3.97246]
[1730859533781,3.9711,2518.2,2517.1,4.36436448]
[1730859534024,0.01,2518.9,2517.2,0.0794355]
[1730859534025,0.7555,2518.9,2517.2,0.0794355]
[1730859534221,0.07940451,2519.1,2518.4,3.97065]
[1730859534422,0.83490451,2519.3,2518.6,3.9703]
[1730859534593,0.7555,2519.3,2518.7,3.97019]
[1730859535018,2.06783956,2519.8,2518.0,3.9714]
[1730859535019,0.07940451,2519.2,2518.0,3.9714]
[1730859535323,0.52033615,2520.3,2520.2,3.96793]
[1730859535852,0.7555,2520.9,2520.4,3.9675]
[1730859535992,1.99400988,2521.2,2520.5,0.07933471]
[1730859536194,1.99400988,2521.2,2520.5,3.96733]
[1730859536398,0.07940451,2521.1,2520.5,3.96733]
[1730859536595,0.07940451,2521.1,2520.2,3.96791]
[1730859536818,1.99400988,2521.2,2519.6,0.01]
[1730859536991,5.99817677,2521.3,2520.4,3.96752]
[1730859537195,5.96039988,2521.2,2520.4,3.96759]
[1730859537407,5.99810677,2521.3,2520.4,3.96754]
[1730859537612,5.99810677,2521.3,2520.5,3.96736]
[1730859537819,3.96666,2521.1,2520.3,3.96773]
[1730859538117,0.07940451,2521.0,2520.0,3.96821]
[1730859538347,3.96743,2520.6,2519.6,3.96882]
[1730859538506,3.96781,2520.3,2519.4,4.09895883]
[1730859538714,4.80237451,2520.5,2519.4,4.09895883]
[1730859538715,4.04736451,2520.2,2519.4,0.12976883]
[1730859539005,3.96826,2520.0,2519.4,0.12976883]
[1730859539210,4.04790451,2519.9,2519.4,0.12976883]
[1730859539378,0.07940451,2519.9,2519.4,0.12976883]
[1730859539944,3.9688,2519.7,2519.4,0.12976883]
[1730859540237,3.96904,2519.5,2519.4,0.12976883]
[1730859540441,0.07940451,2519.6,2519.4,0.12976883]
[1730859540731,4.04786451,2519.9,2519.1,3.96967]
[1730859541035,0.47624451,2519.9,2519.2,4.04887947]
[1730859541339,0.47624451,2519.9,2519.2,0.07937947]
[1730859541496,4.72702,2519.4,2519.0,1.6054251]
[1730859541699,0.7578,2519.9,2519.6,3.96887]
[1730859541952,0.7578,2520.3,2519.7,0.07936703]
[1730859542097,0.7578,2520.3,2519.6,3.96887]
[1730859542299,0.7578,2520.3,2519.8,3.96849]
[1730859542519,0.07940451,2520.2,2519.6,3.96887]
[1730859542730,0.07940451,2520.2,2519.4,3.96913]
[1730859542731,1.23827145,2520.3,2519.4,3.96905]
[1730859542938,0.07940451,2520.2,2518.7,3.97016]
[1730859543120,0.07940451,2520.2,2519.1,3.96954]
[1730859543121,3.96846,2519.9,2519.1,3.96954]
[1730859543441,4.04799451,2519.8,2519.1,3.96954]
[1730859543937,4.72678,2519.6,2518.9,3.96996]
[1730859544139,0.7578,2519.6,2519.2,3.96946]
[1730859544438,4.04844451,2519.5,2518.7,3.97019]
[1730859544639,4.04844451,2519.5,2518.5,3.97059]
[1730859544801,4.04844451,2519.5,2518.2,3.97096]
[1730859544802,3.9698,2519.1,2518.2,3.97096]
[1730859545002,0.47638451,2519.0,2518.3,3.9708]
[1730859545202,0.47638451,2519.0,2518.4,3.97077]
[1730859545406,0.7578,2519.4,2519.0,3.96968]
[1730859545647,3.0,2520.4,2519.2,3.96935]
[1730859545648,0.7578,2519.8,2519.2,3.96935]
[1730859546047,4.04814451,2519.7,2519.0,3.96981]
[1730859546538,3.96889,2519.6,2519.0,3.96981]
[1730859546745,3.96921,2519.4,2518.6,3.97043]
[1730859546933,0.48426596,2519.3,2518.8,3.97003]
[1730859547137,0.07940451,2519.4,2518.8,3.97002]
[1730859547336,0.07940451,2519.6,2519.1,3.96953]
[1730859547644,4.80592451,2519.8,2519.1,7.93908]
[1730859547971,0.7578,2519.8,2519.6,3.96875]
[1730859548116,0.7578,2520.2,2519.9,3.96834]
[1730859548318,0.7578,2520.2,2519.7,3.96867]
[1730859548561,0.7578,2520.2,2519.8,3.96856]
[1730859548719,0.7578,2520.2,2518.6,4.52036737]
[1730859548720,0.7578,2520.2,2519.5,3.96898]
[1730859548916,0.7578,2520.2,2519.7,3.96871]
[1730859549266,0.7578,2520.2,2518.3,0.01]
[1730859549267,3.96825,2520.0,2519.0,3.96979]
[1730859549471,3.96892,2519.6,2519.0,3.96979]
[1730859549635,0.07940451,2519.5,2519.0,3.96979]
[1730859549954,0.07940451,2520.1,2519.2,3.96951]
[1730859550154,0.7578,2520.2,2519.6,3.96883]
[1730859550462,5.27778351,2520.2,2519.5,3.96899]
[1730859550618,0.7578,2520.8,2519.6,0.07937182]
[1730859550817,0.7578,2520.8,2520.1,3.96798]
[1730859551027,0.7578,2520.8,2519.0,0.01]
[1730859551028,0.07940451,2520.7,2519.0,0.01]
[1730859551360,0.07940451,2520.7,2519.2,3.96938]
[1730859551361,3.96837,2520.0,2519.2,3.96938]
[1730859551577,0.83720451,2519.9,2519.4,3.96919]
[1730859551734,0.7578,2519.9,2519.4,3.96919]
[1730859551936,5.0,2522.3,2522.0,3.9651]
[1730859552254,1.67135478,2523.3,2522.0,6.30660278]
[1730859552255,7.5e-06,2522.1,2522.0,6.30660278]
[1730859552444,3.53792974,2522.8,2522.3,3.96463]
[1730859552445,2.46561795,2522.4,2522.3,3.96463]
[1730859552763,0.14,2522.8,2521.3,3.9661]
[1730859552963,3.96406,2522.7,2521.7,3.96554]
[1730859553259,3.96406,2522.7,2521.1,1.09703165]
[1730859553260,4.72185,2522.7,2521.8,3.96535]
[1730859553560,3.96507,2522.1,2521.2,3.96636]
[1730859553730,3.96507,2522.1,2520.6,0.57162791]
[1730859553731,0.7578,2521.8,2520.9,3.96671]
[1730859554068,3.96575,2521.6,2520.7,3.96712]
[1730859554424,3.96607,2521.4,2520.5,3.96741]
[1730859554631,0.396575,2521.5,2520.7,3.96705]
[1730859554831,0.396575,2521.5,2520.5,3.96746]
[1730859555030,4.72322,2521.8,2520.5,3.96746]
[1730859555367,4.437932,2521.7,2520.4,0.80098659]
[1730859555523,4.437932,2521.7,2520.4,4.76853659]
[1730859555723,0.472322,2521.7,2520.4,0.80098659]
[1730859555919,3.96593,2521.5,2520.6,3.96729]